[Event "Bamberg-Open 2019"]
[Site "Bamberg"]
[Date "2019.06.01"]
[Round "6.4"]
[White "Kurayan, Ruslan"]
[Black "Ziegenfuss, Holger"]
[Result "1-0"]
[ECO "B29"]
[WhiteElo "2374"]
[BlackElo "2006"]
[Annotator "ChessBase"]
[PlyCount "93"]
[EventDate "2019.05.12"]
[EventType "swiss"]
[EventCountry "GER"]
[SourceTitle "playchess.com"]
[Source "ChessBase"]
[SourceQuality "1"]
[TimeControl "40/5400+30:900+30"]

1. e4 {[%emt 0:00:00]} c5 {[%emt 0:00:08]} 2. Nf3 {[%emt 0:00:00]} Nf6 {[%emt 0:00:08]} 3. e5 {[%emt 0:01:57]} Nd5 {[%emt 0:00:06]} 4. b3 {[%emt 0:08:05]} b6 {[%emt 0:04:17]} 5. Bd3 {[%emt 0:14:02]} Nc6 {[%emt 0:15:24]} 6. Be4 {[%emt 0:05:04]} e6 {[%emt 0:01:50]} 7. O-O {[%emt 0:00:06]} Bb7 {[%emt 0:06:46]} 8. c4 {[%emt 0:07:35]} Nde7 {[%emt 0:06:29]} 9. Nc3 {[%emt 0:17:18]} Ng6 {[%emt 0:01:43]} 10. Nb5 {[%emt 0:03:49]} Qb8 {[%emt 0:04:54]} 11. Bb2 {[%emt 0:03:53]} a6 {[%emt 0:01:52]} 12. Nd6+ {[%emt 0:01:50]} Bxd6 {[%emt 0:01:08]} 13. exd6 {[%emt 0:00:16]} f5 {[%emt 0:15:28]} 14. Bxc6 {[%emt 0:06:08]} Bxc6 {[%emt 0:00:06]} 15. d4 {[%emt 0:02:26]} Bxf3 {[%emt 0:03:54]} 16. Qxf3 {[%emt 0:00:28]} cxd4 {[%emt 0:00:49]} 17. Rad1 {[%emt 0:01:56]} O-O {[%emt 0:01:56]} 18. Rxd4 {[%emt 0:04:06]} Qd8 {[%emt 0:02:48]} 19. Re1 {[%emt 0:03:10]} Rc8 {[%emt 0:01:57]} 20. Qc3 {[%emt 0:00:54]} Rf7 {[%emt 0:01:03]} 21. f4 {[%emt 0:02:05]} Rc6 {[%emt 0:00:33]} 22. b4 {[%emt 0:00:56]} Qc8 {[%emt 0:04:29]} 23. a4 {[%emt 0:02:14]} Qa8 {[%emt 0:00:55]} 24. b5 {[%emt 0:02:49]} Rc8 {[%emt 0:00:15]} 25. Qb4 {[%emt 0:01:22]} Rff8 {[%emt 0:03:00]} 26. h3 {[%emt 0:01:37]} h6 {[%emt 0:01:26]} 27. Kh2 {[%emt 0:00:59]} Kh7 {[%emt 0:00:38]} 28. Re3 {[%emt 0:00:56]} Rg8 {[%emt 0:01:27]} 29. Rg3 {[%emt 0:00:53]} Nh8 {[%emt 0:04:47]} 30. Qc3 {[%emt 0:00:54]} Ng6 {[%emt 0:00:59]} 31. Ba1 {[%emt 0:05:09]} Rc5 {[%emt 0:04:19]} 32. Qb2 {[%emt 0:00:40]} Rcc8 {[%emt 0:01:43]} 33. Rb3 {[%emt 0:01:40]} a5 {[%emt 0:00:55]} 34. Rg3 {[%emt 0:00:28]} Nh8 {[%emt 0:00:32]} 35. Rdd3 {[%emt 0:00:22]} g6 {[%emt 0:00:27]} 36. Qf6 {[%emt 0:01:07]} Rcf8 {[%emt 0:00:42]} 37. Qd4 {[%emt 0:00:19]} Qb8 {[%emt 0:02:06]} 38. c5 {[%emt 0:00:34]} bxc5 {[%emt 0:01:34]} 39. Qxc5 {[%emt 0:00:02]} Rc8 {[%emt 0:00:23]} 40. Qd4 {[%emt 0:00:11]} Qa8 {[%emt 0:03:10]} 41. Rc3 {[%emt 0:15:21]} Nf7 {[%emt 0:16:58]} 42. Rxc8 {[%emt 0:00:49]} Qxc8 {[%emt 0:00:20]} 43. Rc3 {[%emt 0:00:20]} Qd8 {[%emt 0:00:37]} 44. b6 {[%emt 0:00:55]} g5 {[%emt 0:01:14]} 45. b7 {[%emt 0:00:11]} gxf4 {[%emt 0:00:40]} 46. Rc8 {[%emt 0:00:18]} e5 {[%emt 0:00:00]} 47. Rxd8 {[%emt 0:00:00]} 1-0

[Event "Bamberg-Open 2019"]
[Site "Bamberg"]
[Date "2019.06.01"]
[Round "6.5"]
[White "Ammon, Tobias"]
[Black "Langheinrich, Ferenc"]
[Result "1/2-1/2"]
[ECO "B06"]
[WhiteElo "2151"]
[BlackElo "2379"]
[Annotator "ChessBase"]
[PlyCount "50"]
[EventDate "2019.05.12"]
[EventType "swiss"]
[EventCountry "GER"]
[SourceTitle "playchess.com"]
[Source "ChessBase"]
[SourceQuality "1"]
[TimeControl "40/5400+30:900+30"]

1. e4 {[%emt 0:00:24]} g6 {[%emt 0:00:00]} 2. d4 {[%emt 0:00:06]} Bg7 {[%emt 0:00:00]} 3. Nc3 {[%emt 0:00:04]} d6 {[%emt 0:00:00]} 4. f4 {[%emt 0:00:05]} e6 {[%emt 0:00:14]} 5. Nf3 {[%emt 0:00:12]} a6 {[%emt 0:00:12]} 6. Bd3 {[%emt 0:00:21]} Ne7 {[%emt 0:01:30]} 7. O-O {[%emt 0:02:46]} O-O {[%emt 0:03:22]} 8. Ne2 {[%emt 0:04:34]} f5 {[%emt 0:12:34]} 9. e5 {[%emt 0:09:27]} dxe5 {[%emt 0:00:23]} 10. Nxe5 {[%emt 0:01:25]} Nbc6 {[%emt 0:00:43]} 11. c3 {[%emt 0:00:39]} Nxe5 {[%emt 0:00:25]} 12. dxe5 {[%emt 0:06:01]} g5 {[%emt 0:00:59]} 13. fxg5 {[%emt 0:14:05]} Ng6 {[%emt 0:02:32]} 14. Bc2 {[%emt 0:03:47]} Qe7 {[%emt 0:11:24]} 15. Nf4 {[%emt 0:02:28]} Rd8 {[%emt 0:02:08]} 16. Qe2 {[%emt 0:01:03]} Bd7 {[%emt 0:08:25]} 17. Nxg6 {[%emt 0:05:36]} hxg6 {[%emt 0:02:47]} 18. Re1 {[%emt 0:00:39]} Bb5 {[%emt 0:02:36]} 19. Qf2 {[%emt 0:02:19]} Bd3 {[%emt 0:04:03]} 20. Bf4 {[%emt 0:05:51]} Rd7 {[%emt 0:02:52]} 21. Rac1 {[%emt 0:02:17]} Rad8 {[%emt 0:00:18]} 22. h3 {[%emt 0:01:22]} c5 {[%emt 0:03:20]} 23. Bxd3 {[%emt 0:03:34]} Rxd3 {[%emt 0:00:06]} 24. c4 {[%emt 0:00:38]} b6 {[%emt 0:02:29]} 25. Kh1 {[%emt 0:06:36]} a5 {[%emt 0:00:30]} 1/2-1/2

[Event "Bamberg-Open 2019"]
[Site "Bamberg"]
[Date "2019.06.01"]
[Round "6.6"]
[White "Berghof, Axel"]
[Black "Hirneise, Jens"]
[Result "0-1"]
[ECO "E81"]
[WhiteElo "2155"]
[BlackElo "2375"]
[Annotator "ChessBase"]
[PlyCount "66"]
[EventDate "2019.05.12"]
[EventType "swiss"]
[EventCountry "GER"]
[SourceTitle "playchess.com"]
[Source "ChessBase"]
[SourceQuality "1"]
[TimeControl "40/5400+30:900+30"]

1. d4 {[%emt 0:00:00]} Nf6 {[%emt 0:00:00]} 2. c4 {[%emt 0:00:00]} g6 {[%emt 0:00:00]} 3. Nc3 {[%emt 0:00:10]} Bg7 {[%emt 0:00:00]} 4. e4 {[%emt 0:00:49]} d6 {[%emt 0:00:00]} 5. f3 {[%emt 0:00:49]} O-O {[%emt 0:00:00]} 6. Be3 {[%emt 0:00:34]} a6 {[%emt 0:00:02]} 7. Qd2 {[%emt 0:03:20]} Nbd7 {[%emt 0:00:06]} 8. Nh3 {[%emt 0:02:01]} c5 {[%emt 0:00:14]} 9. d5 {[%emt 0:00:43]} b5 {[%emt 0:00:05]} 10. cxb5 {[%emt 0:11:37]} Qa5 {[%emt 0:02:08]} 11. Bh6 {[%emt 0:07:21]} Bxh6 {[%emt 0:10:37]} 12. Qxh6 {[%emt 0:00:05]} axb5 {[%emt 0:00:38]} 13. Bxb5 {[%emt 0:06:46]} Rb8 {[%emt 0:00:55]} 14. Bxd7 {[%emt 0:04:07]} Bxd7 {[%emt 0:03:30]} 15. O-O {[%emt 0:11:09]} Bxh3 {[%emt 0:12:00]} 16. Qxh3 {[%emt 0:01:10]} Rxb2 {[%emt 0:00:06]} 17. Rac1 {[%emt 0:03:47]} Qb4 {[%emt 0:02:37]} 18. Qh6 {[%emt 0:10:52]} Qd4+ {[%emt 0:10:26]} 19. Kh1 {[%emt 0:01:13]} Ra8 {[%emt 0:04:35]} 20. Rfd1 {[%emt 0:04:36]} Qf2 {[%emt 0:06:57]} 21. Rg1 {[%emt 0:00:43]} Nh5 {[%emt 0:02:55]} 22. Qg5 {[%emt 0:04:32]} Rc2 {[%emt 0:12:40]} 23. Rxc2 {[%emt 0:14:38]} Qxc2 {[%emt 0:00:02]} 24. Qc1 {[%emt 0:00:47]} Qf2 {[%emt 0:06:23]} 25. Rf1 {[%emt 0:02:23]} Qd4 {[%emt 0:01:02]} 26. g3 {[%emt 0:01:26]} Nf6 {[%emt 0:01:23]} 27. Kg2 {[%emt 0:01:30]} Nd7 {[%emt 0:01:13]} 28. Rd1 {[%emt 0:03:45]} Qb4 {[%emt 0:00:42]} 29. a4 {[%emt 0:00:45]} Nb6 {[%emt 0:03:11]} 30. Rd2 {[%emt 0:00:02]} Nxa4 {[%emt 0:05:43]} 31. Ra2 {[%emt 0:00:33]} Nb6 {[%emt 0:00:50]} 32. Rb2 {[%emt 0:00:12]} Qa3 {[%emt 0:01:10]} 33. Qc2 {[%emt 0:01:29]} Nc4 {[%emt 0:00:36]} 0-1

[Event "Bamberg-Open 2019"]
[Site "Bamberg"]
[Date "2019.06.01"]
[Round "6.7"]
[White "Becker, Tobias"]
[Black "Scholz, Christian"]
[Result "1/2-1/2"]
[ECO "A48"]
[WhiteElo "2019"]
[BlackElo "2372"]
[Annotator "ChessBase"]
[PlyCount "69"]
[EventDate "2019.05.12"]
[EventType "swiss"]
[EventCountry "GER"]
[SourceTitle "playchess.com"]
[Source "ChessBase"]
[SourceQuality "1"]
[TimeControl "40/5400+30:900+30"]

1. d4 {[%emt 0:00:00]} Nf6 {[%emt 0:00:00]} 2. Nf3 {[%emt 0:00:00]} g6 {[%emt 0:00:00]} 3. Bg5 {[%emt 0:00:08]} Bg7 {[%emt 0:00:00]} 4. Nbd2 {[%emt 0:00:18]} h6 {[%emt 0:00:08]} 5. Bh4 {[%emt 0:00:20]} d5 {[%emt 0:05:01]} 6. e3 {[%emt 0:00:28]} O-O {[%emt 0:00:54]} 7. Bd3 {[%emt 0:00:41]} c5 {[%emt 0:11:52]} 8. c3 {[%emt 0:00:50]} b6 {[%emt 0:03:13]} 9. O-O {[%emt 0:10:59]} Bb7 {[%emt 0:01:03]} 10. Qb1 {[%emt 0:00:17]} Nc6 {[%emt 0:11:00]} 11. b4 {[%emt 0:01:01]} cxb4 {[%emt 0:09:25]} 12. cxb4 {[%emt 0:00:05]} g5 {[%emt 0:08:03]} 13. Bg3 {[%emt 0:00:12]} Nh5 {[%emt 0:00:33]} 14. a3 {[%emt 0:22:01]} Nxg3 {[%emt 0:00:24]} 15. hxg3 {[%emt 0:00:03]} e6 {[%emt 0:11:39]} 16. Rc1 {[%emt 0:01:52]} g4 {[%emt 0:02:30]} 17. b5 {[%emt 0:13:25]} Ne7 {[%emt 0:00:20]} 18. Ne5 {[%emt 0:03:01]} Bxe5 {[%emt 0:13:54]} 19. dxe5 {[%emt 0:00:05]} a6 {[%emt 0:00:15]} 20. Qb4 {[%emt 0:03:10]} d4 {[%emt 0:03:07]} 21. Ne4 {[%emt 0:02:14]} f5 {[%emt 0:03:21]} 22. Nf6+ {[%emt 0:16:06]} Kf7 {[%emt 0:00:03]} 23. bxa6 {[%emt 0:00:25]} Bxa6 {[%emt 0:01:22]} 24. Bxa6 {[%emt 0:00:52]} Rxa6 {[%emt 0:00:01]} 25. exd4 {[%emt 0:03:35]} Ra7 {[%emt 0:04:52]} 26. Rab1 {[%emt 0:03:24]} b5 {[%emt 0:00:36]} 27. Qc5 {[%emt 0:05:24]} Qa8 {[%emt 0:01:10]} 28. Qxb5 {[%emt 0:00:30]} Rxa3 {[%emt 0:00:27]} 29. Rc7 {[%emt 0:00:25]} Ra7 {[%emt 0:00:59]} 30. Rxa7 {[%emt 0:02:49]} Qxa7 {[%emt 0:00:05]} 31. d5 {[%emt 0:00:05]} exd5 {[%emt 0:01:27]} 32. Nxd5 {[%emt 0:00:08]} Rd8 {[%emt 0:01:03]} 33. Nxe7 {[%emt 0:02:20]} Qxe7 {[%emt 0:00:08]} 34. Qc6 {[%emt 0:02:35]} Rd7 {[%emt 0:01:29]} 35. Re1 {[%emt 0:04:23]} 1/2-1/2

[Event "Bamberg-Open 2019"]
[Site "Bamberg"]
[Date "2019.06.01"]
[Round "6.8"]
[White "Zenker, Ulrich"]
[Black "Gegenfurtner, Juergen"]
[Result "0-1"]
[ECO "D35"]
[WhiteElo "2147"]
[BlackElo "2323"]
[Annotator "ChessBase"]
[PlyCount "56"]
[EventDate "2019.05.12"]
[EventType "swiss"]
[EventCountry "GER"]
[SourceTitle "playchess.com"]
[Source "ChessBase"]
[SourceQuality "1"]
[TimeControl "40/5400+30:900+30"]

1. d4 {[%emt 0:00:00]} d5 {[%emt 0:00:00]} 2. c4 {[%emt 0:00:00]} e6 {[%emt 0:00:00]} 3. Nc3 {[%emt 0:00:31]} Nf6 {[%emt 0:00:00]} 4. cxd5 {[%emt 0:00:18]} exd5 {[%emt 0:00:00]} 5. Bg5 {[%emt 0:00:06]} Be7 {[%emt 0:00:10]} 6. e3 {[%emt 0:00:38]} c6 {[%emt 0:00:39]} 7. Bd3 {[%emt 0:00:22]} Nbd7 {[%emt 0:00:22]} 8. Nge2 {[%emt 0:04:49]} O-O {[%emt 0:00:43]} 9. O-O {[%emt 0:00:33]} Nh5 {[%emt 0:02:21]} 10. Bxe7 {[%emt 0:05:13]} Qxe7 {[%emt 0:00:13]} 11. Qc2 {[%emt 0:09:09]} g6 {[%emt 0:06:12]} 12. Rae1 {[%emt 0:03:33]} Ndf6 {[%emt 0:04:41]} 13. Nf4 {[%emt 0:07:56]} Nxf4 {[%emt 0:04:38]} 14. exf4 {[%emt 0:03:36]} Qd6 {[%emt 0:00:40]} 15. f5 {[%emt 0:00:55]} Bd7 {[%emt 0:01:23]} 16. a3 {[%emt 0:25:08]} Rae8 {[%emt 0:01:31]} 17. g3 {[%emt 0:00:54]} Re7 {[%emt 0:07:15]} 18. Rxe7 {[%emt 0:04:42]} Qxe7 {[%emt 0:00:07]} 19. Qc1 {[%emt 0:02:40]} Re8 {[%emt 0:00:26]} 20. Qg5 {[%emt 0:05:26]} Kg7 {[%emt 0:03:01]} 21. fxg6 {[%emt 0:00:10]} hxg6 {[%emt 0:00:35]} 22. h3 {[%emt 0:00:17]} Bg4 {[%emt 0:09:51]} 23. f3 {[%emt 0:04:14]} Bc8 {[%emt 0:07:15]} 24. Kf2 {[%emt 0:02:36]} c5 {[%emt 0:08:36]} 25. dxc5 {[%emt 0:02:05]} Qxc5+ {[%emt 0:00:06]} 26. Kg2 {[%emt 0:00:05]} Qb6 {[%emt 0:07:48]} 27. Rf2 {[%emt 0:02:27]} Bxh3+ {[%emt 0:00:43]} 28. Kxh3 {[%emt 0:00:27]} Qxf2 {[%emt 0:00:06]} 0-1

[Event "Bamberg-Open 2019"]
[Site "Bamberg"]
[Date "2019.06.01"]
[Round "6.9"]
[White "Delitzsch, Juergen"]
[Black "Lohvinov, Petro"]
[Result "1-0"]
[ECO "B22"]
[WhiteElo "2175"]
[BlackElo "2086"]
[Annotator "ChessBase"]
[PlyCount "71"]
[EventDate "2019.05.12"]
[EventType "swiss"]
[EventCountry "GER"]
[SourceTitle "playchess.com"]
[Source "ChessBase"]
[SourceQuality "1"]
[TimeControl "40/5400+30:900+30"]

1. e4 {[%emt 0:00:00]} c5 {[%emt 0:06:07]} 2. c3 {[%emt 0:00:35]} Nf6 {[%emt 0:00:06]} 3. e5 {[%emt 0:00:13]} Nd5 {[%emt 0:00:03]} 4. d4 {[%emt 0:00:16]} cxd4 {[%emt 0:00:01]} 5. Nf3 {[%emt 0:00:10]} e6 {[%emt 0:01:14]} 6. cxd4 {[%emt 0:01:49]} d6 {[%emt 0:00:14]} 7. a3 {[%emt 0:05:31]} Bd7 {[%emt 0:02:08]} 8. Bd3 {[%emt 0:00:57]} Bc6 {[%emt 0:00:21]} 9. O-O {[%emt 0:02:39]} Nd7 {[%emt 0:00:48]} 10. Re1 {[%emt 0:03:55]} Be7 {[%emt 0:01:21]} 11. Qe2 {[%emt 0:11:43]} dxe5 {[%emt 0:07:08]} 12. dxe5 {[%emt 0:00:25]} a6 {[%emt 0:07:29]} 13. Nd4 {[%emt 0:02:31]} Rc8 {[%emt 0:06:34]} 14. Qg4 {[%emt 0:04:22]} g6 {[%emt 0:05:33]} 15. Bh6 {[%emt 0:10:18]} Nc5 {[%emt 0:11:02]} 16. Bc2 {[%emt 0:01:55]} b5 {[%emt 0:02:54]} 17. b4 {[%emt 0:02:54]} Nd7 {[%emt 0:02:26]} 18. Nxe6 {[%emt 0:02:52]} Qb6 {[%emt 0:04:54]} 19. Nd4 {[%emt 0:01:07]} Bb7 {[%emt 0:04:28]} 20. Nd2 {[%emt 0:04:00]} Nf8 {[%emt 0:02:06]} 21. Bb3 {[%emt 0:11:41]} Ne6 {[%emt 0:00:50]} 22. N2f3 {[%emt 0:03:31]} Bf8 {[%emt 0:03:24]} 23. Bxf8 {[%emt 0:02:51]} Kxf8 {[%emt 0:00:31]} 24. Nxe6+ {[%emt 0:00:25]} Qxe6 {[%emt 0:02:45]} 25. Qd4 {[%emt 0:01:24]} Qb6 {[%emt 0:03:00]} 26. Qd2 {[%emt 0:04:45]} Kg7 {[%emt 0:05:35]} 27. e6 {[%emt 0:01:37]} f6 {[%emt 0:01:34]} 28. Nd4 {[%emt 0:02:33]} Ne7 {[%emt 0:00:36]} 29. Qe3 {[%emt 0:00:44]} Qd8 {[%emt 0:01:47]} 30. Rad1 {[%emt 0:00:18]} Qe8 {[%emt 0:02:05]} 31. Ne2 {[%emt 0:04:47]} Rc7 {[%emt 0:02:11]} 32. Nf4 {[%emt 0:01:54]} Nf5 {[%emt 0:01:34]} 33. Qb6 {[%emt 0:01:41]} Qc6 {[%emt 0:02:51]} 34. Qxc7+ {[%emt 0:01:11]} Qxc7 {[%emt 0:00:10]} 35. Rd7+ {[%emt 0:00:06]} Qxd7 {[%emt 0:00:11]} 36. exd7 {[%emt 0:00:05]} 1-0

[Event "Bamberg-Open 2019"]
[Site "Bamberg"]
[Date "2019.06.01"]
[Round "6.10"]
[White "Spitzl, Vinzent"]
[Black "Kues, Hendrik"]
[Result "1-0"]
[ECO "B27"]
[WhiteElo "2263"]
[BlackElo "2137"]
[Annotator "ChessBase"]
[PlyCount "53"]
[EventDate "2019.05.12"]
[EventType "swiss"]
[EventCountry "GER"]
[SourceTitle "playchess.com"]
[Source "ChessBase"]
[SourceQuality "1"]
[TimeControl "40/5400+30:900+30"]

1. e4 {[%emt 0:11:20]} c5 {[%emt 0:00:00]} 2. Nf3 {[%emt 0:00:13]} g6 {[%emt 0:00:34]} 3. d4 {[%emt 0:00:07]} cxd4 {[%emt 0:00:10]} 4. Qxd4 {[%emt 0:00:05]} Nf6 {[%emt 0:00:09]} 5. Nc3 {[%emt 0:00:16]} Nc6 {[%emt 0:02:27]} 6. Qa4 {[%emt 0:00:05]} d6 {[%emt 0:06:05]} 7. e5 {[%emt 0:00:05]} dxe5 {[%emt 0:00:06]} 8. Nxe5 {[%emt 0:00:06]} Bd7 {[%emt 0:00:07]} 9. Nxd7 {[%emt 0:00:06]} Qxd7 {[%emt 0:00:12]} 10. Be3 {[%emt 0:00:14]} Bg7 {[%emt 0:00:43]} 11. Rd1 {[%emt 0:00:07]} Qc8 {[%emt 0:00:39]} 12. Be2 {[%emt 0:00:17]} O-O {[%emt 0:00:22]} 13. O-O {[%emt 0:00:34]} a6 {[%emt 0:03:54]} 14. Qb3 {[%emt 0:00:20]} b5 {[%emt 0:07:35]} 15. h3 {[%emt 0:17:21]} Qc7 {[%emt 0:05:54]} 16. a4 {[%emt 0:04:49]} b4 {[%emt 0:05:32]} 17. Nd5 {[%emt 0:00:58]} Nxd5 {[%emt 0:01:52]} 18. Rxd5 {[%emt 0:00:02]} Rfc8 {[%emt 0:11:57]} 19. Rc5 {[%emt 0:06:44]} Qd6 {[%emt 0:03:07]} 20. Rd1 {[%emt 0:01:40]} Qf6 {[%emt 0:02:36]} 21. Qc4 {[%emt 0:01:28]} e5 {[%emt 0:06:29]} 22. Bf3 {[%emt 0:01:40]} Ne7 {[%emt 0:00:31]} 23. Bxa8 {[%emt 0:00:40]} Rxa8 {[%emt 0:00:01]} 24. Rc7 {[%emt 0:02:40]} h5 {[%emt 0:02:27]} 25. Rdd7 {[%emt 0:00:16]} Bf8 {[%emt 0:00:24]} 26. h4 {[%emt 0:01:35]} Nf5 {[%emt 0:01:24]} 27. Rxf7 {[%emt 0:00:38]} 1-0

[Event "Bamberg-Open 2019"]
[Site "Bamberg"]
[Date "2019.06.01"]
[Round "6.11"]
[White "Fiedorek, Michal"]
[Black "Pribyl, Josef"]
[Result "1-0"]
[ECO "B06"]
[WhiteElo "2088"]
[BlackElo "2239"]
[Annotator "ChessBase"]
[PlyCount "67"]
[EventDate "2019.05.12"]
[EventType "swiss"]
[EventCountry "GER"]
[SourceTitle "playchess.com"]
[Source "ChessBase"]
[SourceQuality "1"]
[TimeControl "40/5400+30:900+30"]

1. e4 {[%emt 0:00:00]} g6 {[%emt 0:00:00]} 2. d4 {[%emt 0:00:00]} Bg7 {[%emt 0:00:00]} 3. Nc3 {[%emt 0:00:20]} d6 {[%emt 0:00:00]} 4. Be3 {[%emt 0:00:18]} a6 {[%emt 0:00:02]} 5. Qd2 {[%emt 0:00:47]} Nd7 {[%emt 0:00:12]} 6. f3 {[%emt 0:00:35]} b5 {[%emt 0:00:36]} 7. g4 {[%emt 0:05:32]} Bb7 {[%emt 0:00:44]} 8. Nge2 {[%emt 0:00:55]} c5 {[%emt 0:01:13]} 9. h4 {[%emt 0:03:33]} h5 {[%emt 0:02:44]} 10. gxh5 {[%emt 0:02:12]} Rxh5 {[%emt 0:00:28]} 11. Ng3 {[%emt 0:02:11]} Rh7 {[%emt 0:04:02]} 12. O-O-O {[%emt 0:06:45]} cxd4 {[%emt 0:01:42]} 13. Bxd4 {[%emt 0:01:18]} Ngf6 {[%emt 0:03:07]} 14. Kb1 {[%emt 0:08:23]} Qc7 {[%emt 0:02:36]} 15. h5 {[%emt 0:04:48]} gxh5 {[%emt 0:02:01]} 16. Nf5 {[%emt 0:02:08]} Bf8 {[%emt 0:02:36]} 17. Bh3 {[%emt 0:04:02]} b4 {[%emt 0:13:17]} 18. Ne2 {[%emt 0:03:11]} a5 {[%emt 0:01:50]} 19. Nc1 {[%emt 0:16:38]} Ne5 {[%emt 0:03:06]} 20. Qg2 {[%emt 0:03:57]} a4 {[%emt 0:01:10]} 21. Nd3 {[%emt 0:07:20]} b3 {[%emt 0:01:39]} 22. Nxe5 {[%emt 0:03:12]} dxe5 {[%emt 0:01:00]} 23. Bc3 {[%emt 0:01:05]} bxa2+ {[%emt 0:06:17]} 24. Ka1 {[%emt 0:01:15]} a3 {[%emt 0:02:17]} 25. Qg3 {[%emt 0:05:13]} axb2+ {[%emt 0:02:48]} 26. Bxb2 {[%emt 0:00:05]} Ra5 {[%emt 0:04:55]} 27. Rd3 {[%emt 0:03:52]} h4 {[%emt 0:05:46]} 28. Qg5 {[%emt 0:07:19]} Bc8 {[%emt 0:12:26]} 29. Rhd1 {[%emt 0:02:26]} Bxf5 {[%emt 0:03:22]} 30. Qd2 {[%emt 0:03:00]} e6 {[%emt 0:03:45]} 31. Rd8+ {[%emt 0:01:14]} Ke7 {[%emt 0:00:02]} 32. Ba3+ {[%emt 0:00:37]} Rc5 {[%emt 0:01:06]} 33. Bxc5+ {[%emt 0:00:12]} Qxc5 {[%emt 0:00:13]} 34. Re8+ {[%emt 0:00:15]} 1-0

[Event "Bamberg-Open 2019"]
[Site "Bamberg"]
[Date "2019.06.01"]
[Round "6.12"]
[White "Weishaeutel, Moritz"]
[Black "Carnot, Luca"]
[Result "1-0"]
[ECO "B42"]
[WhiteElo "2252"]
[BlackElo "2043"]
[Annotator "ChessBase"]
[PlyCount "51"]
[EventDate "2019.05.12"]
[EventType "swiss"]
[EventCountry "GER"]
[SourceTitle "playchess.com"]
[Source "ChessBase"]
[SourceQuality "1"]
[TimeControl "40/5400+30:900+30"]

1. e4 {[%emt 0:00:00]} c5 {[%emt 0:00:00]} 2. Nf3 {[%emt 0:00:00]} e6 {[%emt 0:00:00]} 3. d4 {[%emt 0:00:00]} cxd4 {[%emt 0:00:00]} 4. Nxd4 {[%emt 0:00:00]} a6 {[%emt 0:00:00]} 5. Bd3 {[%emt 0:00:00]} Qc7 {[%emt 0:00:04]} 6. O-O {[%emt 0:00:13]} Nf6 {[%emt 0:00:37]} 7. Qe2 {[%emt 0:00:19]} d6 {[%emt 0:00:45]} 8. c4 {[%emt 0:00:08]} Nbd7 {[%emt 0:00:15]} 9. f4 {[%emt 0:03:59]} Be7 {[%emt 0:00:31]} 10. Nf3 {[%emt 0:02:58]} e5 {[%emt 0:01:33]} 11. Nc3 {[%emt 0:02:07]} O-O {[%emt 0:02:47]} 12. h3 {[%emt 0:05:28]} exf4 {[%emt 0:07:12]} 13. Bxf4 {[%emt 0:00:08]} Ne5 {[%emt 0:01:37]} 14. Nxe5 {[%emt 0:22:04]} dxe5 {[%emt 0:00:27]} 15. Bg5 {[%emt 0:00:01]} Be6 {[%emt 0:00:55]} 16. Kh1 {[%emt 0:00:46]} Ne8 {[%emt 0:11:24]} 17. Bxe7 {[%emt 0:01:54]} Qxe7 {[%emt 0:00:03]} 18. Nd5 {[%emt 0:03:25]} Qh4 {[%emt 0:10:40]} 19. Kh2 {[%emt 0:09:03]} Rc8 {[%emt 0:03:22]} 20. Qe3 {[%emt 0:02:30]} Bxd5 {[%emt 0:21:43]} 21. exd5 {[%emt 0:00:13]} Nf6 {[%emt 0:00:05]} 22. Kg1 {[%emt 0:03:53]} Rfe8 {[%emt 0:09:24]} 23. b3 {[%emt 0:07:28]} b5 {[%emt 0:01:19]} 24. d6 {[%emt 0:03:19]} Qd4 {[%emt 0:10:02]} 25. Qxd4 {[%emt 0:02:28]} exd4 {[%emt 0:00:02]} 26. Rxf6 {[%emt 0:00:34]} 1-0

[Event "Bamberg-Open 2019"]
[Site "Bamberg"]
[Date "2019.06.01"]
[Round "6.13"]
[White "Kolb, Tobias"]
[Black "Spitzl, Bertram"]
[Result "1-0"]
[ECO "B13"]
[WhiteElo "1915"]
[BlackElo "2176"]
[Annotator "ChessBase"]
[PlyCount "76"]
[EventDate "2019.05.12"]
[EventType "swiss"]
[EventCountry "GER"]
[SourceTitle "playchess.com"]
[Source "ChessBase"]
[SourceQuality "1"]
[TimeControl "40/5400+30:900+30"]

1. e4 {[%emt 0:00:00]} c6 {[%emt 0:00:00]} 2. d4 {[%emt 0:00:00]} d5 {[%emt 0:00:00]} 3. exd5 {[%emt 0:00:00]} cxd5 {[%emt 0:00:00]} 4. Bd3 {[%emt 0:00:00]} Nc6 {[%emt 0:00:00]} 5. c3 {[%emt 0:00:00]} Qc7 {[%emt 0:00:00]} 6. Ne2 {[%emt 0:00:02]} Bg4 {[%emt 0:00:12]} 7. O-O {[%emt 0:00:04]} e6 {[%emt 0:04:17]} 8. Qe1 {[%emt 0:00:04]} Bxe2 {[%emt 0:02:17]} 9. Qxe2 {[%emt 0:00:12]} g6 {[%emt 0:14:39]} 10. Nd2 {[%emt 0:03:18]} Bg7 {[%emt 0:05:07]} 11. f4 {[%emt 0:00:39]} Nge7 {[%emt 0:01:14]} 12. Nf3 {[%emt 0:01:23]} h5 {[%emt 0:05:37]} 13. Ne5 {[%emt 0:01:46]} a6 {[%emt 0:03:06]} 14. Bd2 {[%emt 0:03:34]} Nf5 {[%emt 0:08:13]} 15. Rae1 {[%emt 0:14:18]} Qd6 {[%emt 0:08:16]} 16. g4 {[%emt 0:02:24]} hxg4 {[%emt 0:02:53]} 17. Qxg4 {[%emt 0:02:30]} Nce7 {[%emt 0:04:06]} 18. Re2 {[%emt 0:03:42]} Bxe5 {[%emt 0:09:35]} 19. fxe5 {[%emt 0:03:37]} Qb6 {[%emt 0:00:19]} 20. Bg5 {[%emt 0:00:30]} Qc7 {[%emt 0:04:48]} 21. Rc2 {[%emt 0:09:36]} Rd8 {[%emt 0:00:57]} 22. h4 {[%emt 0:02:48]} Rd7 {[%emt 0:02:45]} 23. Rh2 {[%emt 0:01:23]} Rh5 {[%emt 0:02:24]} 24. Be2 {[%emt 0:11:46]} Ng7 {[%emt 0:01:04]} 25. Qf4 {[%emt 0:02:16]} Nef5 {[%emt 0:00:09]} 26. Bxh5 {[%emt 0:00:27]} Nxh5 {[%emt 0:00:12]} 27. Qg4 {[%emt 0:03:45]} Qc4 {[%emt 0:03:06]} 28. b3 {[%emt 0:01:26]} Qb5 {[%emt 0:07:03]} 29. Rc1 {[%emt 0:11:09]} Rc7 {[%emt 0:00:15]} 30. Rhc2 {[%emt 0:03:06]} Qd3 {[%emt 0:00:59]} 31. Rd2 {[%emt 0:01:08]} Qb5 {[%emt 0:00:12]} 32. Qe2 {[%emt 0:02:20]} Qb6 {[%emt 0:02:52]} 33. Qd3 {[%emt 0:01:48]} Qc6 {[%emt 0:03:32]} 34. c4 {[%emt 0:01:56]} Nhg3 {[%emt 0:00:50]} 35. Rg2 {[%emt 0:00:18]} Nh5 {[%emt 0:04:16]} 36. cxd5 Qxc1+ 37. Bxc1 Rxc1+ 38. Kh2 exd5 1-0